bitfinex/quotes_BTCUSD_20260125
["timestamp","ask_amount","ask_price","bid_price","bid_amount"]
[1769373759723,0.42799614,86292.0,86279.0,0.0115903]
[1769373759957,0.42799614,86292.0,86278.0,0.04636]
[1769373760532,0.42799614,86292.0,86278.0,0.05795044]
[1769373760737,0.42799614,86292.0,86278.0,0.04636]
[1769373762668,0.13790255,86292.0,86278.0,0.04636]
[1769373762835,0.42799614,86291.0,86278.0,0.04636]
[1769373763231,0.42799614,86288.0,86277.0,0.0002145]
[1769373763459,0.56589869,86286.0,86277.0,0.0002145]
[1769373764085,0.56589869,86285.0,86277.0,0.0002145]
[1769373764693,0.42799614,86285.0,86277.0,0.0002145]
[1769373766846,0.21008919,86285.0,86277.0,0.0002145]
[1769373767725,0.34799174,86285.0,86277.0,0.0002145]
[1769373769980,0.21008919,86285.0,86277.0,0.0002145]
[1769373770152,0.21226826,86283.0,86277.0,0.0002145]
[1769373774609,0.35210954,86290.0,86277.0,0.0002145]
[1769373774832,0.49001209,86290.0,86277.0,0.0002145]
[1769373775056,0.70228035,86290.0,86277.0,0.0002145]
[1769373775771,0.49001209,86290.0,86277.0,0.0002145]
[1769373775954,0.21226826,86289.0,86277.0,0.0002145]
[1769373776320,0.39030826,86289.0,86277.0,0.0002145]
[1769373776740,0.39030826,86289.0,86273.0,1.08933244]
[1769373777406,0.39030826,86289.0,86274.0,0.01159097]
[1769373777586,0.21226826,86289.0,86273.0,1.10092355]
[1769373777826,0.21226826,86289.0,86274.0,0.01159097]
[1769373778046,0.13790255,86298.0,86278.0,1.12948204]
[1769373778246,0.13790255,86298.0,86287.0,0.05794605]
[1769373778484,0.25215841,86304.0,86285.0,1.12948204]
[1769373778485,0.00373058,86303.0,86288.0,0.05794498]
[1769373778692,0.00373058,86303.0,86290.0,0.01158882]
[1769373778693,0.17804,86302.0,86290.0,0.01158882]
[1769373778894,0.13804459,86304.0,86291.0,0.01158869]
[1769373779101,0.13804459,86304.0,86289.0,1.141071]
[1769373779318,0.25201637,86303.0,86288.0,0.01158909]
[1769373779521,0.25201637,86303.0,86287.0,0.13419679]
[1769373779724,0.31608459,86304.0,86292.0,0.01158855]
[1769373779925,0.13804459,86304.0,86293.0,0.01158842]
[1769373780106,0.13804459,86304.0,86291.0,0.01158869]
[1769373780321,0.00014204,86304.0,86293.0,0.01158842]
[1769373780524,0.00014204,86304.0,86295.0,1.12948204]
[1769373780724,0.00014204,86304.0,86294.0,0.13419679]
[1769373781812,0.00014204,86304.0,86284.0,0.13419679]
[1769373781813,0.25201637,86303.0,86284.0,0.13419679]
[1769373782004,0.00014204,86304.0,86285.0,0.01158949]
[1769373782005,0.13790255,86299.0,86285.0,0.01158949]
[1769373782215,0.38991892,86299.0,86285.0,0.01158949]
[1769373782416,0.00014204,86304.0,86289.0,0.01158896]
[1769373782629,0.00014204,86304.0,86291.0,0.13419679]
[1769373782829,0.25201637,86303.0,86289.0,0.01158896]
[1769373783036,0.25201637,86303.0,86286.0,0.05794682]
[1769373783249,0.25201637,86303.0,86285.0,0.1983779]
[1769373783398,0.25201637,86298.0,86284.0,0.01158963]
[1769373783612,0.25201637,86298.0,86286.0,0.01158936]
[1769373783812,0.25201637,86298.0,86283.0,0.01158976]
[1769373784174,0.25201637,86298.0,86285.0,0.01158949]
[1769373785179,0.25201637,86298.0,86286.0,0.01158936]
[1769373785353,0.25201637,86298.0,86285.0,0.01158949]
[1769373785789,0.25201637,86298.0,86286.0,0.01158936]
[1769373786372,0.25201637,86298.0,86285.0,0.01158949]
[1769373786577,0.25201637,86298.0,86286.0,0.01158936]
[1769373786785,0.25201637,86298.0,86285.0,0.01158949]
[1769373786988,0.25201637,86298.0,86286.0,0.01158936]
[1769373787665,0.00014204,86304.0,86289.0,1.27685589]
[1769373787895,0.00014204,86304.0,86298.0,0.01158775]
[1769373788118,8.75e-05,86317.0,86309.0,0.00985796]
[1769373789232,0.0002302,86330.0,86312.0,1.14898692]
[1769373789445,0.00373058,86329.0,86313.0,0.12786897]
[1769373790298,0.00373058,86329.0,86313.0,0.10820312]
[1769373790729,0.28154093,86328.0,86309.0,0.00985796]
[1769373790946,0.12973354,86325.0,86309.0,0.00985796]
[1769373791153,0.41500505,86325.0,86309.0,0.00985796]
[1769373791385,0.41127447,86325.0,86309.0,0.00985796]
[1769373791795,0.28154093,86324.0,86309.0,0.00985796]
[1769373792219,0.28154093,86322.0,86309.0,0.00985796]
[1769373792423,0.28154093,86319.0,86309.0,0.00985796]
[1769373793105,0.41127447,86318.0,86309.0,0.00985796]
[1769373794351,0.35210954,86320.0,86309.0,0.00985796]
[1769373794785,0.178,86326.0,86309.0,1.15884488]
[1769373794993,0.178,86326.0,86310.0,0.12786897]
[1769373794994,0.00373058,86325.0,86310.0,0.12786897]
[1769373795203,0.00373058,86325.0,86310.0,1.27685589]
[1769373796376,0.00373058,86325.0,86310.0,1.28844203]
[1769373796759,0.00373058,86325.0,86310.0,1.27685589]
[1769373796977,0.00373058,86325.0,86310.0,1.28844203]
[1769373797620,0.00373058,86325.0,86311.0,0.011586]
[1769373797834,0.00373058,86325.0,86310.0,1.27685589]
[1769373798256,0.35210954,86320.0,86309.0,0.00985796]
[1769373799903,0.28154093,86319.0,86309.0,0.00985796]
[1769373800077,0.28154093,86318.0,86309.0,0.00985796]
[1769373800523,0.12987446,86317.0,86309.0,0.00985796]
[1769373800745,0.40768481,86315.0,86309.0,0.00985796]
[1769373801173,0.00373058,86314.0,86309.0,0.00985796]
[1769373801370,0.28154093,86310.0,86309.0,0.00985796]
[1769373801583,0.40768481,86310.0,86309.0,0.00985796]
[1769373802127,0.40768481,86310.0,86309.0,0.00864379]
[1769373802564,0.12614388,86310.0,86309.0,0.00864379]
[1769373802799,0.40768481,86318.0,86309.0,0.00864379]
[1769373803007,0.00373058,86317.0,86309.0,0.00864379]
[1769373803583,0.41141539,86317.0,86309.0,0.00864379]
[1769373803784,0.40768481,86317.0,86309.0,0.00864379]
[1769373804059,0.00373058,86316.0,86309.0,0.00864379]
[1769373805452,0.28527151,86316.0,86309.0,0.00864379]
[1769373805609,0.28154093,86316.0,86309.0,0.00864379]
[1769373806031,0.178,86317.0,86309.0,0.00864379]
[1769373806260,0.00373058,86316.0,86309.0,0.00864379]
[1769373807065,0.01111162,86317.0,86309.0,0.00864379]
[1769373807224,0.30414388,86324.0,86309.0,0.00864379]
[1769373807425,0.28154093,86323.0,86309.0,0.00864379]
[1769373807737,0.00043992,86309.0,86307.0,1.21017524]
[1769373809366,0.00043992,86309.0,86307.0,1.08595239]
[1769373809591,0.00043992,86309.0,86304.0,1.21031728]
[1769373810375,0.00043992,86309.0,86304.0,0.00014204]
[1769373813223,0.12614388,86315.0,86304.0,0.00014204]
[1769373815890,0.35210954,86320.0,86304.0,1.11040399]
[1769373816410,0.35210954,86320.0,86306.0,0.01158667]
[1769373816648,0.11679095,86321.0,86310.0,0.01158614]
[1769373816855,0.11679095,86327.0,86310.0,0.01158614]
[1769373817050,0.11679095,86325.0,86311.0,0.011586]
[1769373817273,0.11589131,86324.0,86313.0,0.01158574]
[1769373817483,0.11679095,86325.0,86312.0,0.01158587]
[1769373817691,0.11589153,86324.0,86306.0,0.01158667]
[1769373817898,0.11589238,86323.0,86307.0,0.13398249]
[1769373818099,0.28154093,86324.0,86307.0,0.13398249]
[1769373818306,0.11589269,86323.0,86307.0,0.13398249]
[1769373818505,0.39833188,86324.0,86307.0,0.13398249]
[1769373818709,0.11589174,86323.0,86307.0,0.13398249]
[1769373818937,0.39833188,86324.0,86307.0,0.13398249]
[1769373819140,0.11589184,86323.0,86307.0,0.12239595]
[1769373819361,0.39833188,86324.0,86307.0,0.12239595]
[1769373819572,0.11589078,86323.0,86307.0,0.12239595]
[1769373819831,0.39833188,86324.0,86307.0,0.13398249]
[1769373820078,0.11589063,86323.0,86307.0,0.19191483]
[1769373820276,0.11679095,86324.0,86309.0,0.01158627]
[1769373820449,0.35210954,86320.0,86311.0,0.011586]
[1769373820647,0.35210954,86320.0,86309.0,1.24424417]
[1769373821053,0.35210954,86320.0,86310.0,0.01158614]
[1769373821256,0.35210954,86320.0,86311.0,1.12184795]
[1769373821458,0.28154093,86329.0,86312.0,0.01158587]
[1769373821660,0.00037229,86330.0,86319.0,0.13398088]
[1769373821661,0.35248183,86330.0,86319.0,0.13398088]
[1769373821852,0.35248183,86330.0,86322.0,1.11026195]
[1769373821853,0.17748009,86330.0,86322.0,1.11026195]
[1769373822057,0.35210954,86340.0,86326.0,1.11026195]
[1769373822320,0.35210954,86340.0,86328.0,0.01158372]
[1769373822618,0.35210954,86340.0,86327.0,0.01158386]
[1769373822619,0.0002302,86344.0,86338.0,1.11026195]
[1769373822817,0.0002302,86344.0,86338.0,1.24424028]
[1769373823079,0.0002302,86344.0,86339.0,0.01158225]
[1769373823320,0.0002302,86344.0,86340.0,1.12184406]
[1769373823534,0.0002302,86344.0,86338.0,0.12239595]
[1769373824165,0.0002302,86344.0,86338.0,0.13397833]
[1769373824369,0.0002302,86344.0,86338.0,0.12239595]
[1769373824573,0.0002302,86344.0,86334.0,0.01158292]
[1769373824776,0.35233974,86344.0,86333.0,1.121845]
[1769373825212,0.35233974,86344.0,86333.0,1.11026195]
[1769373825414,0.35233974,86344.0,86330.0,0.12239595]
[1769373825644,0.35167664,86340.0,86331.0,0.01158332]
[1769373825830,0.35167664,86340.0,86330.0,0.12239595]
[1769373826282,0.35167664,86340.0,86330.0,0.1339794]
[1769373826489,0.35167664,86340.0,86327.0,0.24750265]
[1769373826490,0.35167664,86340.0,86327.0,1.29984581]
[1769373826705,0.11679095,86343.0,86327.0,1.28826195]
[1769373826706,0.35167664,86337.0,86327.0,1.28826195]
[1769373827140,0.35167664,86340.0,86327.0,0.178]
[1769373827367,0.46846759,86340.0,86327.0,0.18958386]
[1769373827796,0.46846759,86340.0,86328.0,0.01158372]
[1769373828622,0.46846759,86340.0,86327.0,0.18958386]
[1769373828831,0.46846759,86340.0,86327.0,0.178]
[1769373829906,0.802185,86340.0,86327.0,0.178]
[1769373830817,0.33371741,86339.0,86327.0,0.178]
[1769373831034,0.35167664,86337.0,86327.0,0.178]
[1769373831240,0.33371741,86339.0,86327.0,0.178]
[1769373833997,0.35167664,86337.0,86327.0,0.178]
[1769373834802,0.33371741,86339.0,86327.0,0.178]
[1769373835784,0.46846759,86340.0,86327.0,0.178]
[1769373836806,0.11679095,86340.0,86327.0,0.178]
[1769373837012,0.35167664,86337.0,86327.0,0.178]
[1769373837230,0.46846759,86340.0,86327.0,0.178]
[1769373839062,0.46880509,86340.0,86327.0,0.178]
[1769373841075,0.46880509,86340.0,86327.0,0.158]
[1769373841284,0.35201414,86340.0,86332.0,0.12239595]
[1769373841945,0.0003375,86340.0,86332.0,0.12239595]
[1769373842154,0.0001791,86354.0,86342.0,1.11026195]
[1769373842363,0.35167664,86360.0,86346.0,1.11026195]
[1769373842570,0.35181871,86360.0,86348.0,1.11026195]
[1769373842808,0.11679095,86354.0,86340.0,0.17792]
[1769373843025,0.35167664,86350.0,86340.0,0.17792]
[1769373843247,0.11203404,86349.0,86340.0,0.17792]
[1769373843448,0.33407203,86348.0,86340.0,0.17792]
[1769373843671,0.44610607,86348.0,86340.0,0.17792]
[1769373843885,0.11203404,86343.0,86329.0,0.04636]
[1769373844093,0.23173291,86360.0,86329.0,0.0464596]
[1769373844094,0.35167664,86340.0,86329.0,0.0464596]
[1769373844293,0.46371068,86340.0,86329.0,0.0464596]
[1769373844684,0.33407203,86339.0,86329.0,0.0464596]
[1769373844887,1.09132772,86337.0,86329.0,9.96e-05]
[1769373845088,0.36325875,86340.0,86320.0,0.0002863]
[1769373845089,0.323967,86332.0,86320.0,0.0002863]
[1769373845300,0.70335328,86340.0,86320.0,0.0002863]
[1769373845301,0.01158439,86323.0,86320.0,0.0002863]
[1769373845460,0.11203404,86324.0,86309.0,0.17792]
[1769373845659,0.11203404,86324.0,86308.0,0.04636]
[1769373845660,0.11203404,86318.0,86308.0,0.04636]
[1769373845906,0.32307337,86317.0,86308.0,0.04636]
[1769373846085,0.32307948,86315.0,86303.0,0.0002863]
[1769373846282,0.35151504,86314.0,86304.0,0.00028413]
[1769373849458,0.11203404,86315.0,86304.0,0.00028413]
[1769373850789,0.35167664,86320.0,86305.0,1.0660911]
[1769373852165,0.78663815,86320.0,86305.0,1.0660911]
[1769373852677,0.32292747,86318.0,86304.0,0.00028413]
[1769373852854,0.35167664,86315.0,86304.0,0.00028413]
[1769373853480,0.43496151,86314.0,86304.0,0.00028413]
[1769373853687,0.36326211,86315.0,86304.0,0.00028413]
[1769373853900,0.32468869,86309.0,86291.0,0.06499188]
[1769373854272,0.35167664,86301.0,86291.0,0.06513392]
[1769373855400,0.35167664,86301.0,86291.0,0.01173073]
[1769373855599,0.35167664,86301.0,86291.0,0.00014204]
[1769373856718,0.32468869,86300.0,86291.0,0.00014204]
[1769373857339,0.32426463,86292.0,86271.0,0.11107249]
[1769373857536,0.01158815,86295.0,86271.0,0.1115465]
[1769373857537,0.35167664,86280.0,86271.0,0.1115465]
[1769373858374,0.35167664,86280.0,86271.0,0.00047401]
[1769373858780,0.35167664,86280.0,86272.0,0.01159124]
[1769373859475,0.35167664,86280.0,86271.0,0.01219279]
[1769373859682,0.10647004,86287.0,86271.0,0.01219279]
[1769373859683,0.10647004,86287.0,86273.0,1.15973912]
[1769373859884,0.10647004,86287.0,86274.0,0.01159097]
[1769373860068,0.35167664,86290.0,86276.0,1.2708112]
[1769373860279,0.35167664,86290.0,86276.0,1.2592205]
[1769373861390,0.35167664,86290.0,86276.0,1.2708112]
[1769373861592,0.35167664,86290.0,86276.0,1.2592205]
[1769373861957,0.35167664,86290.0,86276.0,1.2708112]
[1769373862152,0.35167664,86290.0,86277.0,0.01159057]
[1769373862381,0.35167664,86300.0,86282.0,1.14814801]
[1769373862698,0.35167664,86300.0,86285.0,0.11107249]
[1769373862855,0.60873467,86304.0,86285.0,0.12266198]
[1769373862856,0.35167664,86295.0,86285.0,0.12266198]
[1769373863066,0.35167664,86295.0,86285.0,0.11107249]
[1769373863257,0.32426463,86303.0,86285.0,0.11107249]
[1769373863258,0.35167664,86300.0,86285.0,0.11107249]
[1769373863940,0.35167664,86300.0,86288.0,0.01158909]
[1769373864147,0.04636,86308.0,86210.0,0.25570322]
[1769373864148,0.35167664,86320.0,86304.0,1.14814801]
[1769373864464,0.35167664,86320.0,86307.0,0.01158654]
[1769373864666,0.35167664,86320.0,86308.0,0.11107249]
[1769373865277,0.35181865,86320.0,86308.0,0.11107249]
[1769373865479,0.35181865,86320.0,86310.0,0.01158614]
[1769373865698,0.00014201,86320.0,86309.0,0.01158627]
[1769373865899,0.00014201,86320.0,86308.0,0.11107249]
[1769373866481,0.00014201,86320.0,86308.0,0.1226589]
[1769373866662,0.00014201,86320.0,86310.0,0.01158614]
[1769373866871,0.00014201,86320.0,86309.0,0.01158627]
[1769373867073,0.00014201,86320.0,86308.0,0.11107249]
[1769373876755,0.00014201,86320.0,86305.0,0.01158681]
[1769373877091,0.00014201,86320.0,86306.0,0.01158667]
[1769373877637,0.00014201,86320.0,86307.0,0.01158654]
[1769373878329,0.00014201,86320.0,86308.0,0.01158641]
[1769373878758,0.178,86331.0,86313.0,0.10365473]
[1769373878890,0.178,86331.0,86314.0,1.25511095]
[1769373879093,0.178,86331.0,86314.0,0.10365473]
[1769373879316,0.33528806,86329.0,86307.0,0.01158654]
[1769373879585,0.44284049,86328.0,86311.0,0.011586]
[1769373879777,0.44284049,86328.0,86310.0,0.01158614]
[1769373880633,0.44284049,86328.0,86311.0,1.15145662]
[1769373881270,0.44284049,86328.0,86313.0,0.01108574]
[1769373881686,0.44284049,86328.0,86314.0,0.0115856]
[1769373881886,0.44284049,86328.0,86313.0,0.01108574]
[1769373882068,0.44284049,86328.0,86314.0,0.0115856]
[1769373882266,0.10755243,86328.0,86314.0,0.0115856]
[1769373882534,0.44284049,86327.0,86311.0,0.011586]
[1769373882762,0.44284049,86327.0,86315.0,0.01158547]
[1769373882763,0.10755243,86327.0,86315.0,0.01158547]
[1769373883120,0.0003171,86338.0,86327.0,0.01158386]
[1769373883325,0.0003171,86338.0,86327.0,1.13987062]
[1769373883823,0.0003171,86338.0,86326.0,0.10365473]
[1769373883957,0.0003171,86338.0,86326.0,0.01158399]
[1769373885059,0.0003171,86338.0,86325.0,0.01158412]
[1769373885233,0.01158091,86349.0,86324.0,0.01158426]
[1769373885523,0.10755243,86345.0,86324.0,0.11523899]
[1769373885722,0.24040874,86339.0,86324.0,0.10365473]
[1769373887132,0.35169043,86334.0,86319.0,0.01158493]
[1769373887339,0.24040874,86337.0,86320.0,0.0115848]
[1769373887516,0.24040874,86337.0,86320.0,0.11523953]
[1769373887715,0.35173312,86330.0,86320.0,0.10365473]
[1769373887922,0.35173312,86330.0,86320.0,0.11523953]
[1769373888531,0.35173312,86330.0,86322.0,1.13987062]
[1769373889315,0.01158158,86344.0,86322.0,1.13987062]
[1769373889316,0.35173312,86340.0,86327.0,0.10365473]
[1769373889499,0.01158091,86349.0,86329.0,1.13987062]
[1769373889839,0.01158091,86349.0,86324.0,0.01158426]
[1769373889840,0.60020584,86346.0,86330.0,0.10365473]
[1769373890051,0.69617696,86346.0,86330.0,0.10365473]
[1769373890257,0.70775827,86346.0,86330.0,0.10365473]
[1769373890459,0.69617696,86346.0,86330.0,0.10365473]
[1769373890670,0.35173312,86340.0,86330.0,0.10365473]
[1769373893945,0.35173312,86340.0,86327.0,1.13987062]
[1769373895352,0.35173312,86340.0,86323.0,0.10365473]
[1769373895495,0.35173312,86340.0,86323.0,1.24352535]
[1769373895702,0.36331523,86340.0,86323.0,1.24352535]
[1769373896267,0.35173312,86340.0,86323.0,1.24352535]
[1769373896432,0.36331523,86340.0,86323.0,1.24352535]
[1769373896851,0.35173312,86333.0,86323.0,1.24352535]
[1769373897048,0.35173312,86333.0,86313.0,1.13987062]
[1769373897363,0.35173312,86330.0,86317.0,1.13987062]
[1769373897572,0.35173312,86330.0,86319.0,1.13987062]
[1769373898406,0.13130235,86330.0,86319.0,1.13987062]
[1769373899093,0.13130235,86330.0,86318.0,0.10365473]
[1769373900404,0.13130235,86330.0,86319.0,1.13987062]
[1769373902724,0.10792989,86330.0,86319.0,1.13987062]
[1769373902935,0.69617696,86339.0,86319.0,1.13987062]
[1769373903145,0.69617696,86339.0,86319.0,1.24352535]
[1769373903577,0.11375529,86338.0,86319.0,1.24352535]
[1769373904009,0.11375529,86338.0,86321.0,1.10965606]
[1769373904459,0.58862453,86338.0,86321.0,1.12124072]
[1769373904678,0.11375529,86339.0,86322.0,1.10965606]
[1769373904887,0.70237982,86339.0,86322.0,1.10965606]
[1769373908050,0.70237982,86339.0,86321.0,0.11177411]
[1769373908051,0.35173312,86332.0,86321.0,0.11177411]
[1769373909340,0.35173312,86332.0,86318.0,1.10965606]
[1769373909536,0.35173312,86332.0,86318.0,1.22143017]
[1769373911831,0.58862453,86331.0,86318.0,0.11177411]
[1769373912052,0.35173312,86332.0,86318.0,0.11177411]
[1769373912294,0.35173312,86332.0,86312.0,0.178]
[1769373912295,0.01158359,86329.0,86312.0,0.178]
[1769373912481,0.01,86318.0,86312.0,1.10965606]
[1769373912722,0.11375529,86327.0,86312.0,1.10965606]
[1769373912856,0.9519411,86330.0,86311.0,0.04636]
[1769373912857,0.58862453,86326.0,86311.0,0.04636]
[1769373913056,0.11375529,86325.0,86311.0,0.04636]
[1769373913863,0.11375529,86325.0,86312.0,1.10965606]
[1769373914331,0.11375529,86325.0,86311.0,0.04636]
[1769373916088,0.58862453,86325.0,86311.0,0.04636]
[1769373916292,0.10470865,86324.0,86311.0,0.04636]
[1769373916944,0.10470865,86322.0,86311.0,0.04636]
[1769373918136,0.35173312,86321.0,86311.0,0.04620242]
[1769373918947,0.45644177,86321.0,86311.0,0.04620242]
[1769373919906,0.10470865,86329.0,86311.0,0.04620242]
[1769373920097,0.35173312,86321.0,86311.0,0.04620242]
[1769373920394,0.69333318,86324.0,86311.0,0.04620242]
[1769373921203,0.10470865,86324.0,86311.0,0.04508948]
[1769373921484,0.10470865,86324.0,86311.0,1.12305102]
[1769373922755,0.10470865,86324.0,86311.0,0.04508948]
[1769373923196,0.10470865,86324.0,86307.0,1.07810355]
[1769373923445,0.10470865,86324.0,86307.0,1.07805042]
[1769373923864,0.10470865,86319.0,86307.0,8.888e-05]
[1769373926083,0.35173312,86320.0,86307.0,8.888e-05]
[1769373926700,0.35173312,86320.0,86307.0,1.07805042]
[1769373929679,0.35173312,86320.0,86307.0,8.888e-05]
[1769373929893,0.10470865,86319.0,86307.0,8.888e-05]
[1769373931023,0.94035765,86320.0,86307.0,8.888e-05]
[1769373931024,0.58862453,86318.0,86307.0,8.888e-05]
[1769373931216,0.10470865,86316.0,86301.0,1.23597042]
[1769373931378,0.10481836,86316.0,86301.0,1.23597042]
[1769373933215,0.10481836,86316.0,86301.0,0.15800888]
[1769373933549,0.00010971,86316.0,86306.0,1.13398848]
[1769373933678,0.00010971,86316.0,86308.0,1.13398848]
[1769373934742,0.00010971,86316.0,86307.0,0.11186505]
[1769373934961,0.00010971,86316.0,86303.0,0.01158708]
[1769373935165,0.00010971,86316.0,86304.0,1.24585353]
[1769373935828,0.00010971,86316.0,86304.0,1.24569609]
[1769373936052,0.00010971,86316.0,86304.0,0.11186505]
[1769373936258,0.00010971,86316.0,86301.0,0.15800888]
[1769373936749,0.5887804,86314.0,86301.0,0.15800888]
[1769373936954,0.60036627,86312.0,86296.0,1.24585353]
[1769373937159,0.69673876,86312.0,86298.0,0.17796]
[1769373937602,0.01169504,86316.0,86285.0,0.11186505]
[1769373937603,0.01158708,86303.0,86285.0,0.11186505]
[1769373937848,0.70346624,86310.0,86282.0,1.13398848]
[1769373937849,0.35173312,86296.0,86282.0,1.13398848]
[1769373938053,0.10795836,86294.0,86278.0,0.08642356]
[1769373938266,1.16077349,86294.0,86278.0,0.08642356]
[1769373938475,1.16077349,86294.0,86277.0,0.17796]
[1769373938718,1.05281513,86294.0,86277.0,0.17796]
[1769373938949,0.35173312,86296.0,86277.0,0.17796]
[1769373938950,1.0525905,86290.0,86277.0,0.17796]
[1769373939164,0.10795836,86287.0,86277.0,0.17796]
[1769373940207,0.10795836,86287.0,86277.0,0.17843401]
[1769373941030,1.0525905,86288.0,86277.0,0.17843401]
[1769373941031,0.95683675,86288.0,86277.0,0.17843401]
[1769373942522,0.35173312,86290.0,86277.0,0.17843401]
[1769373944216,0.35173312,86290.0,86278.0,0.01159044]
[1769373944422,0.95779429,86292.0,86278.0,0.01159044]
[1769373944843,0.10795836,86293.0,86278.0,0.01159044]
[1769373945052,0.10795836,86293.0,86279.0,0.0115903]
[1769373945266,1.06575265,86293.0,86280.0,0.01159017]
[1769373945536,0.178,86297.0,86280.0,0.12345522]
[1769373946421,0.178,86297.0,86280.0,0.11186505]
[1769373947188,0.10795836,86311.0,86297.0,0.01]
[1769373947349,0.35173312,86310.0,86291.0,1.13398848]
[1769373947550,0.95779429,86309.0,86292.0,0.11186505]
[1769373947794,0.178,86312.0,86285.0,0.01158949]
[1769373947795,0.35173312,86302.0,86285.0,0.11186505]
[1769373948014,0.95779429,86299.0,86285.0,0.11186505]
[1769373948417,0.10795836,86298.0,86278.0,1.24585353]
[1769373948629,0.95779429,86297.0,86279.0,0.11186505]
[1769373948862,0.95779429,86297.0,86280.0,0.11186505]
[1769373949122,0.95779429,86297.0,86281.0,0.11186505]
[1769373952452,0.10795836,86296.0,86277.0,0.17843401]
[1769373952656,0.95779429,86295.0,86278.0,0.11186505]
[1769373953275,0.95779429,86295.0,86279.0,0.11186505]
[1769373956639,0.35203022,86290.0,86277.0,0.17843401]
[1769373956818,0.95779429,86289.0,86277.0,0.17843401]
[1769373957230,0.35203022,86290.0,86277.0,0.29029906]
[1769373958041,0.10795836,86293.0,86278.0,0.11186505]
[1769373958244,1.06575265,86299.0,86280.0,0.11186505]
[1769373958434,1.06575265,86299.0,86280.0,1.24585353]
[1769373958921,1.07734026,86299.0,86280.0,1.24585353]
[1769373959134,1.07734026,86299.0,86280.0,0.11186505]
[1769373959330,0.11954597,86299.0,86280.0,0.11186505]
[1769373959538,0.95779429,86298.0,86280.0,0.11186505]
[1769373959919,1.06575265,86298.0,86280.0,0.11186505]
[1769373961960,0.95779429,86289.0,86277.0,0.17843401]
[1769373962441,0.35203022,86290.0,86277.0,0.17843401]
[1769373962642,0.96938258,86294.0,86278.0,0.11186505]
[1769373962846,0.01158842,86293.0,86278.0,0.09186505]
[1769373963066,0.10795836,86298.0,86277.0,0.17843401]
[1769373963067,0.01158936,86286.0,86277.0,0.17843401]
[1769373963270,1.06273691,86287.0,86277.0,0.00047401]
[1769373963683,0.35203022,86290.0,86277.0,0.00047401]
[1769373963856,0.95779429,86296.0,86277.0,0.00047401]
[1769373964096,0.96938231,86296.0,86277.0,0.00047401]
[1769373964311,0.95779429,86294.0,86277.0,0.00047401]
[1769373965412,1.13579429,86305.0,86283.0,0.01158976]
[1769373965635,1.13579429,86305.0,86294.0,0.01]
[1769373966792,1.13579429,86305.0,86288.0,0.10246939]
[1769373967013,0.35203022,86310.0,86290.0,0.10246939]
[1769373967217,1.10279154,86321.0,86301.0,1.10265742]
[1769373967415,1.10279154,86321.0,86302.0,0.10246939]
[1769373967416,0.17804,86318.0,86302.0,0.10246939]
[1769373967814,0.17804,86319.0,86302.0,1.10265742]
[1769373968014,1.05643154,86321.0,86303.0,0.11405647]
[1769373968237,0.01158399,86326.0,86306.0,1.10265742]
[1769373968238,0.17804,86323.0,86306.0,1.10265742]
[1769373968457,0.17804,86323.0,86307.0,0.10246939]
[1769373968671,0.17804,86323.0,86308.0,1.10265742]
[1769373969252,0.17818204,86323.0,86308.0,1.10265742]
[1769373969871,0.35203022,86320.0,86308.0,1.10265742]
[1769373970507,0.35203022,86320.0,86301.0,0.06952397]
[1769373970508,0.95148892,86319.0,86300.0,1.1142449]
[1769373970700,1.05643154,86317.0,86300.0,1.10265742]
[1769373971887,0.36361502,86320.0,86297.0,0.28046939]
[1769373971888,0.10494262,86316.0,86297.0,0.28046939]
[1769373972134,0.95148892,86315.0,86297.0,0.28046939]
[1769373972306,0.95148892,86315.0,86298.0,0.01158775]
[1769373972518,0.95148892,86315.0,86297.0,1.28065742]
[1769373972698,0.95148892,86315.0,86298.0,0.10246939]
[1769373974127,0.95148892,86315.0,86297.0,0.18958788]
[1769373974355,0.10494262,86312.0,86297.0,0.178]
[1769373974557,0.95148892,86311.0,86297.0,0.178]
[1769373975537,0.95148892,86311.0,86297.0,0.18958788]
[1769373975743,0.95148892,86311.0,86297.0,0.178]
[1769373976153,0.95148892,86311.0,86292.0,0.10246939]
[1769373976154,0.1005077,86307.0,86290.0,1.06355896]
[1769373976361,0.49584414,86309.0,86291.0,0.10114921]
[1769373976561,0.178,86312.0,86298.0,1.06355896]
[1769373976778,0.178,86311.0,86298.0,1.16470817]
[1769373977408,0.1005077,86315.0,86300.0,0.35203022]
[1769373977612,0.178,86311.0,86297.0,0.10114921]
[1769373977814,0.49584414,86318.0,86299.0,0.10114921]
[1769373978030,0.178,86317.0,86302.0,1.06355896]
[1769373978240,0.178,86317.0,86304.0,0.10114921]
[1769373978408,0.178,86317.0,86305.0,1.16470817]
[1769373979563,0.00014204,86323.0,86306.0,0.10114921]
[1769373979762,0.178,86322.0,86308.0,0.10114921]
[1769373981258,0.00014204,86323.0,86310.0,0.35203022]
[1769373981472,0.0001604,86328.0,86323.0,0.00014204]
[1769373981920,0.0001604,86328.0,86318.0,0.10114921]
[1769373982121,0.0001604,86328.0,86319.0,1.06355896]
[1769373990163,0.0001604,86328.0,86319.0,1.07514389]
[1769373990363,0.0001604,86328.0,86319.0,1.06355896]
[1769373990577,0.0001604,86328.0,86319.0,1.07514389]
[1769373990797,0.0001604,86328.0,86319.0,1.06355896]
[1769373991235,0.0001604,86328.0,86318.0,0.10114921]
[1769373991400,0.0001604,86328.0,86314.0,0.0115856]
[1769373991592,0.0001604,86328.0,86314.0,0.00014204]
[1769373992971,0.1005077,86326.0,86314.0,0.00014204]
[1769373993201,0.11399616,86322.0,86314.0,0.00014204]
[1769373993396,0.61286835,86322.0,86314.0,0.00014204]
[1769373993920,0.11399616,86322.0,86314.0,0.00014204]
[1769373996636,0.61286835,86321.0,86314.0,0.00014204]
[1769373996830,0.11399616,86321.0,86314.0,0.00014204]
[1769373997083,0.0001604,86328.0,86315.0,1.13966175]
[1769373997376,0.0001604,86328.0,86315.0,1.15124722]
[1769373997529,0.0001604,86328.0,86316.0,0.01158533]
[1769373998083,0.0001604,86328.0,86315.0,1.15124722]
[1769373998300,0.0001604,86328.0,86314.0,0.00014204]
[1769374000165,0.0001604,86328.0,86315.0,0.01158547]
[1769374000569,0.0001604,86328.0,86314.0,0.01172764]
[1769374000771,0.0001604,86328.0,86316.0,0.01158533]
[1769374000974,0.0001604,86328.0,86320.0,0.0115848]
[1769374001294,0.0001604,86328.0,86317.0,0.0115852]
[1769374001295,0.0001604,86328.0,86318.0,0.01158506]
[1769374001543,0.0001604,86328.0,86317.0,1.26030029]
[1769374001956,0.0001604,86328.0,86319.0,0.01158493]
[1769374002167,0.0001604,86328.0,86318.0,0.01158506]
[1769374002545,0.0001604,86328.0,86317.0,1.26030029]
[1769374002747,0.0001604,86328.0,86318.0,0.01158506]
[1769374002966,0.0001604,86328.0,86319.0,0.01158493]
[1769374003319,0.0001604,86328.0,86319.0,1.15124668]
[1769374003684,0.0001604,86328.0,86319.0,1.13966175]
[1769374005505,0.0001604,86328.0,86316.0,0.05792611]